fUSD/lending_fUSD_20251011
["ID","MTS","AMOUNT","RATE_DAILY","PERIOD"]
[390804521,1760161839500,-311.23163853,0.00014152,2]
[390804522,1760161839509,-493.85757414,0.00014163,2]
[390804523,1760161839518,-249.0,0.00014163,2]
[390804524,1760161839528,-433.0,0.0001417,2]
[390804525,1760161839537,-299.66806282,0.00014177,2]
[390804526,1760161839548,-357.08745735,0.00014177,2]
[390804527,1760161839559,-163.0,0.00014185,2]
[390804528,1760161839569,-500.0,0.00014192,2]
[390804529,1760161839578,-874.0,0.00014198,2]
[390804530,1760161839587,-500.0,0.00014198,2]
[390804531,1760161839598,-500.0,0.00014198,2]
[390804532,1760161839607,-690.0,0.00014198,2]
[390804533,1760161839616,-484.0,0.00014198,2]
[390804534,1760161839625,-473.0,0.00014198,2]
[390804535,1760161839636,-500.0,0.00014198,2]
[390804536,1760161839645,-557.0,0.00014198,2]
[390804537,1760161839654,-1140.0,0.00014198,2]
[390804538,1760161839663,-413.23,0.000142,2]
[390804539,1760161839673,-151.59,0.000142,2]
[390804540,1760161839683,-546.03,0.000142,2]
[390804541,1760161839692,-1219.94,0.000142,2]
[390804542,1760161839702,-826.26,0.000142,2]
[390804543,1760161839711,-150.0,0.000142,2]
[390804544,1760161839721,-413.23,0.000142,2]
[390804545,1760161839732,-150.0,0.000142,2]
[390804546,1760161839742,-859.42,0.000142,2]
[390804547,1760161839751,-150.0,0.000142,2]
[390804548,1760161839760,-300.0,0.000142,2]
[390804549,1760161839769,-150.0,0.000142,2]
[390804550,1760161839778,-413.23,0.000142,2]
[390804551,1760161839787,-167.72,0.000142,2]
[390804552,1760161839796,-336.14,0.000142,2]
[390804553,1760161839805,-1198.76,0.000142,2]
[390804554,1760161839815,-190.34,0.000142,2]
[390804555,1760161839823,-323.97,0.000142,2]
[390804556,1760161839832,-338.57,0.000142,2]
[390804557,1760161839842,-808.18,0.000142,2]
[390804558,1760161839851,-452.0,0.00014222,2]
[390804559,1760161839860,-452.0,0.00014242,2]
[390804560,1760161839869,-874.0,0.00014253,2]
[390804561,1760161839878,-500.0,0.00014253,2]
[390804562,1760161839888,-500.0,0.00014253,2]
[390804563,1760161839897,-139.16081453,0.00014253,2]
[390804564,1760161839928,-550.83918547,0.00014253,2]
[390804565,1760161839937,-484.0,0.00014253,2]
[390804566,1760161839947,-473.0,0.00014253,2]
[390804567,1760161839956,-554.66081453,0.00014253,2]
[390804569,1760161840849,-439.0,0.00014088,2]
[390804570,1760161840859,-439.0,0.00014143,2]
[390804571,1760161840869,-439.0,0.00014197,2]
[390804572,1760161840878,-439.0,0.00014252,2]
[390804573,1760161840888,-38.92602169,0.00014253,2]
[390804574,1760161840897,-555.4319783,0.00014253,2]
[390804575,1760161840908,-1.5680217,0.00014253,2]
[390804576,1760161840918,-1140.0,0.00014253,2]
[390804577,1760161840927,-151.0,0.00014253,2]
[390804578,1760161840936,-1374.5716821,0.00014277,2]
[390804579,1760161841246,-1156.8,0.00014277,2]
[390804583,1760161843391,-445.398549,0.00014277,2]
[390804584,1760161843451,-567.56996216,0.00014277,2]
[390804585,1760161843463,-3938.7347994,0.00014277,2]
[390804602,1760161933255,500.0,0.00027397,120]
[390804603,1760161995996,2000.0,0.00024971,120]
[390804604,1760162000792,500.0,0.00024971,120]
[390804605,1760162126740,2751.0,0.00013491,2]
[390804606,1760162141471,401.0,0.00027397,120]
[390804607,1760162156924,401.0,0.00027397,120]
[390804608,1760162199595,501.1,0.00027397,120]
[390804609,1760162212375,501.0,0.00027397,120]
[390804610,1760162243908,500.04,0.00027397,120]
[390804611,1760162274545,-4260199.31479888,0.00030324,30]
[390804612,1760162274573,-78785.14179575,0.00030324,30]
[390804613,1760162274599,-101822.23857015,0.00030324,30]
[390804614,1760162274630,-2202192.17720094,0.00030324,30]
[390804615,1760162274656,-288021.05567487,0.00030324,30]
[390804616,1760162274683,-7259.0,0.00030324,30]
[390804617,1760162274710,-1000.0,0.00030324,30]
[390804618,1760162274736,-1000.0,0.00030324,30]
[390804619,1760162274763,-2187.52669761,0.00030324,31]
[390804620,1760162274793,-3157633.5452618,0.00030324,30]
[390804621,1760162282448,-10100200.0,0.00030324,30]
[390804622,1760162421742,201.94233449,0.00026505,120]
[390804623,1760162424129,201.94233449,0.00025592,120]
[390804628,1760162510592,150.0,0.00013569,2]
[390804629,1760162597197,2000.0,0.00025389,120]
[390804630,1760162602596,500.0,0.00025389,120]
[390804633,1760162940635,7153.94622661,0.000273,120]
[390804670,1760163038901,-166.66,0.00013749,2]
[390804671,1760163038911,-250.0,0.00013824,2]
[390804672,1760163038921,-168.64860507,0.00013898,2]
[390804673,1760163038930,-700.0,0.000139,5]
[390804674,1760163038942,-191.02383136,0.00013941,2]
[390804675,1760163038952,-500.0,0.00013941,2]
[390804676,1760163038961,-195.58576106,0.00013941,2]
[390804677,1760163038971,-199.77606734,0.00013941,2]
[390804678,1760163038980,-1200.0,0.00013944,2]
[390804679,1760163038989,-4628.067,0.00013945,2]
[390804680,1760163038998,-246.586,0.00013945,2]
[390804681,1760163039008,-4906.51840374,0.00014077,2]
[390804682,1760163039019,-224.0736516,0.0001413,2]
[390804683,1760163039028,-7451.28074344,0.0001413,2]
[390804684,1760163039039,-8088.51938212,0.0001413,2]
[390804685,1760163039048,-200.0,0.00014163,2]
[390804686,1760163039058,-474.4,0.000142,2]
[390804687,1760163039068,-546.25,0.000142,2]
[390804688,1760163039078,-808.18,0.000142,2]
[390804689,1760163039087,-150.0,0.0001422,2]
[390804690,1760163039097,-151.0,0.00014221,2]
[390804691,1760163039109,-203.38446236,0.00014221,2]
[390804692,1760163039120,-200.0,0.00014221,2]
[390804693,1760163039129,-322.6107,0.00014221,2]
[390804694,1760163039138,-1000.0,0.00014221,2]
[390804695,1760163039148,-151.0,0.00014221,2]
[390804696,1760163039157,-8565.75555911,0.00014221,2]
[390804697,1760163039167,-500.0,0.00014221,2]
[390804698,1760163039176,-1000.0,0.00014221,2]
[390804699,1760163039186,-500.0,0.00014221,2]
[390804700,1760163039195,-1000.0,0.00014221,2]
[390804701,1760163039205,-500.0,0.00014221,2]
[390804702,1760163039214,-1000.0,0.00014221,2]
[390804703,1760163039223,-500.0,0.00014221,2]
[390804704,1760163039232,-1000.0,0.00014221,2]
[390804705,1760163039241,-500.0,0.00014221,2]
[390804706,1760163039250,-445.98146736,0.00014221,2]
[390804707,1760163039260,-636.67036661,0.00014221,2]
[390804708,1760163039269,-1000.0,0.00014221,2]
[390804709,1760163039279,-1000.0,0.00014221,2]
[390804710,1760163039289,-1000.0,0.00014221,2]
[390804711,1760163039298,-1000.0,0.00014221,2]
[390804712,1760163039307,-1000.0,0.00014221,2]
[390804713,1760163039317,-1000.0,0.00014221,2]
[390804714,1760163039326,-1000.0,0.00014221,2]
[390804715,1760163039336,-192.91544789,0.00014221,2]
[390804716,1760163039346,-151.0,0.00014221,2]
[390804717,1760163039355,-1000.0,0.00014221,2]
[390804718,1760163039365,-201.4930451,0.00014221,2]
[390804719,1760163039374,-151.0,0.00014221,2]
[390804720,1760163039384,-1000.0,0.00014221,2]
[390804721,1760163039393,-151.0,0.00014221,2]
[390804722,1760163039403,-1000.0,0.00014221,2]
[390804723,1760163039413,-151.0,0.00014221,2]
[390804724,1760163039422,-151.0,0.00014221,2]
[390804725,1760163039432,-1000.0,0.00014221,2]
[390804726,1760163039441,-151.0,0.00014221,2]
[390804727,1760163039451,-151.0,0.00014221,2]
[390804728,1760163039459,-1000.0,0.00014221,2]
[390804729,1760163039468,-151.0,0.00014221,2]
[390804730,1760163039478,-151.0,0.00014221,2]
[390804731,1760163039487,-151.0,0.00014221,2]
[390804732,1760163039497,-1000.0,0.00014221,2]
[390804733,1760163039507,-151.0,0.00014221,2]
[390804734,1760163039517,-151.0,0.00014221,2]
[390804735,1760163039527,-1000.0,0.00014221,2]
[390804736,1760163039536,-151.0,0.00014221,2]
[390804737,1760163039545,-1000.0,0.00014221,2]
[390804738,1760163039555,-151.0,0.00014221,2]
[390804739,1760163039565,-1000.0,0.00014221,2]
[390804740,1760163039574,-1000.0,0.00014221,2]
[390804741,1760163039585,-151.0,0.00014221,2]
[390804742,1760163039594,-1000.0,0.00014221,2]
[390804743,1760163039603,-1000.0,0.00014221,2]
[390804744,1760163039613,-1019.834478,0.00014221,2]
[390804745,1760163039624,-621.78829552,0.00014221,2]
[390804746,1760163039633,-151.0,0.00014221,2]
[390804747,1760163039643,-151.0,0.00014221,2]
[390804748,1760163039653,-151.0,0.00014221,2]
[390804749,1760163039662,-151.0,0.00014221,2]
[390804750,1760163039671,-151.0,0.00014221,2]
[390804751,1760163039680,-151.0,0.00014221,2]
[390804752,1760163039689,-646.65982734,0.00014221,2]
[390804753,1760163039699,-151.0,0.00014221,2]
[390804754,1760163039709,-151.0,0.00014221,2]
[390804755,1760163039718,-151.0,0.00014221,2]
[390804756,1760163039727,-151.0,0.00014221,2]
[390804757,1760163039737,-151.0,0.00014221,2]
[390804758,1760163039746,-248.71531821,0.00014221,2]
[390804759,1760163039756,-8966.20523332,0.0001423,2]
[390804761,1760163040497,-1642.21040517,0.0001423,2]
[390804762,1760163040511,-566.6944855,0.0001423,2]
[390804763,1760163040558,-1058.33633602,0.0001423,2]
[390804773,1760163042744,-220126.31093747,0.0001423,2]
[390804774,1760163042757,-5027.180133,0.0001423,2]
[390804775,1760163042935,-1141.41917278,0.0001423,2]
[390804781,1760163045763,-546.25,0.000142,2]
[390804782,1760163045773,-632.16819901,0.0001423,2]
[390804783,1760163045889,-1108.60510029,0.0001423,2]
[390804784,1760163045929,-14577.85364199,0.0001423,2]
[390804785,1760163064131,614.82,0.00013699,2]
[390804787,1760163097143,1504.85686107,0.0002739,120]
[390804788,1760163147386,1186.41,0.0001345,2]
[390804790,1760163198267,2000.0,0.00025389,120]
[390804791,1760163202872,500.0,0.00025389,120]
[390804792,1760163258885,1192.69,0.00013481,2]
[390804794,1760163372192,135993.0,0.00017,60]
[390804795,1760163461024,14405.44868924,0.00027,120]
[390804796,1760163524399,670.21,0.00013404,2]
[390804797,1760163569329,2000.0,0.00027397,120]
[390804798,1760163605314,185.87,0.00013294,2]
[390804799,1760163605339,64.13,0.00013294,2]
[390804800,1760163639796,316.54518701,0.00027397,120]
[390804801,1760163641270,250.0,0.00013286,7]
[390804802,1760163655504,153.0,7.934e-05,2]
[390804803,1760163672692,1000.0,0.00027397,120]
[390804804,1760163679437,1000.0,0.00027397,120]
[390804805,1760163697230,956.36443354,0.00027397,120]
[390804806,1760163707421,1000.0,0.00027397,120]
[390804807,1760163787714,241.23569,0.00027397,120]
[390804808,1760163794394,422.713449,0.00025389,120]
[390804809,1760163800052,500.0,0.00025389,120]
[390804810,1760163894833,200.0,0.00013699,2]
[390804813,1760164085540,-327.0,0.0001376,2]
[390804814,1760164085564,-250.0,0.0001377,2]
[390804815,1760164085591,-193.16684227,0.0001378,2]
[390804816,1760164085615,-327.0,0.00013781,2]
[390804817,1760164107139,-500.0,0.00013836,2]
[390804818,1760164107161,-202.00083813,0.00013836,2]
[390804819,1760164107183,-239.94819642,0.00013836,2]
[390804821,1760164123010,1423.66864197,0.00027397,120]
[390804822,1760164124370,-3193.0,0.00013837,2]
[390804823,1760164149487,-264.0,0.00013858,2]
[390804825,1760164153785,923.11,0.00013699,2]
[390804826,1760164156904,180.140235,0.000138,2]
[390804827,1760164174569,-3000.0,0.00013859,2]
[390804828,1760164184485,176.50388818,0.00013182,2]
[390804829,1760164184506,807.0,0.00013182,2]
[390804830,1760164184530,1862.62611182,0.00013182,2]
[390804831,1760164210736,666.0,0.00013179,3]
[390804901,1760164232470,-193.0,0.00013859,2]
[390804902,1760164232480,-327.0,0.000139,2]
[390804903,1760164232489,-600.0,0.000139,5]
[390804904,1760164232499,-300.0,0.00014029,2]
[390804905,1760164232508,-1200.0,0.00014029,2]
[390804906,1760164232517,-7639.48279048,0.0001403,2]
[390804907,1760164232526,-2001.5471,0.0001403,2]
[390804908,1760164232535,-1000.0,0.0001403,2]
[390804909,1760164232544,-70.7417569,0.0001403,2]
[390804910,1760164232555,-2429.2582431,0.0001403,2]
[390804911,1760164232563,-1000.0,0.0001403,2]
[390804912,1760164232572,-327.0,0.00014072,2]
[390804913,1760164232582,-160.24755,0.0001409,2]
[390804914,1760164232591,-4710.94967381,0.00014094,2]
[390804915,1760164232602,-1177.05032619,0.00014094,2]
[390804916,1760164232611,-327.0,0.00014112,2]
[390804917,1760164232620,-150.0,0.00014121,2]
[390804918,1760164232629,-8565.75555911,0.00014122,2]
[390804919,1760164232638,-621.78829552,0.00014122,2]
[390804920,1760164232647,-151.0,0.00014122,2]
[390804921,1760164232657,-248.71531821,0.00014122,2]
[390804923,1760164232666,-6706.15266915,0.00014129,2]
[390804925,1760164232675,-173.96354849,0.00014129,2]
[390804927,1760164232684,-1000.0,0.00014129,2]
[390804929,1760164232693,-3702.453,0.0001413,2]
[390804931,1760164232703,-197.269,0.0001413,2]
[390804933,1760164232712,-10130.92924153,0.0001413,2]
[390804937,1760164232919,-1875.3460188,0.0001413,2]
[390804938,1760164232945,-4400.42650008,0.0001413,2]
[390804939,1760164232956,-331.88434532,0.0001413,2]
[390804940,1760164233003,-517.9637375,0.00014028,2]
[390804941,1760164233012,-5018.7593456,0.0001413,2]
[390804942,1760164233025,-526.65751705,0.0001413,2]
[390804943,1760164233036,-4951.10849706,0.0001413,2]
[390804944,1760164233048,-370.53545966,0.0001413,2]
[390804945,1760164233063,-846.46166189,0.0001413,2]
[390804946,1760164233074,-935.66626413,0.0001413,2]
[390804953,1760164238018,-694.22104089,0.0001413,2]
[390804954,1760164238029,-2939.23831622,0.0001413,2]
[390805145,1760164239989,-5649.9594979,0.0001413,2]
[390805163,1760164240153,-461.44539996,0.0001413,2]
[390805165,1760164240164,-599.81989998,0.0001413,2]
[390805623,1760164246272,-7489.33252368,0.0001413,2]
[390805625,1760164263543,-6742166.4547372,0.00030315,30]
[390805626,1760164263571,-214.3,0.00030315,30]
[390805627,1760164263598,-214.3,0.00030315,30]
[390805628,1760164263624,-214.3,0.00030315,30]
[390805629,1760164263652,-1992.84086033,0.00030315,30]
[390805630,1760164263679,-457.67062596,0.00030315,30]
[390805631,1760164263706,-620.0,0.00030315,30]
[390805632,1760164263733,-3914.0820685,0.00030315,35]
[390805633,1760164263761,-1480.85127166,0.00030315,30]
[390805634,1760164263792,-1631885.11644853,0.00030315,30]
[390805635,1760164263823,-3847.60335578,0.00030315,30]
[390805636,1760164263853,-1000.0,0.00030315,60]
[390805637,1760164263883,-3000.0,0.00030315,120]
[390805638,1760164263912,-1000.0,0.00030315,60]
[390805639,1760164263940,-1000.0,0.00030315,60]
[390805640,1760164263970,-1897.91,0.00030315,120]
[390805641,1760164263999,-1897.91,0.00030315,120]
[390805642,1760164264028,-1897.91,0.00030315,120]
[390805643,1760164264057,-1897.91,0.00030315,120]
[390805644,1760164264086,-1897.91,0.00030315,120]
[390805645,1760164264114,-1897.91,0.00030315,120]
[390805646,1760164264143,-1897.91,0.00030315,120]
[390805647,1760164264172,-1897.91,0.00030315,120]
[390805648,1760164264202,-1897.91,0.00030315,120]
[390805649,1760164264232,-1897.91,0.00030315,120]
[390805650,1760164264262,-1897.91,0.00030315,120]
[390805651,1760164264292,-1897.91,0.00030315,120]
[390805652,1760164264328,-1897.91,0.00030315,120]
[390805653,1760164264359,-1897.91,0.00030315,120]
[390805654,1760164264392,-1897.91,0.00030315,120]
[390805655,1760164264426,-1897.91,0.00030315,120]
[390805656,1760164264465,-1897.91,0.00030315,120]
[390805657,1760164264495,-1897.91,0.00030315,120]
[390805658,1760164264533,-1897.91,0.00030315,120]
[390805659,1760164264584,-1897.91,0.00030315,120]
[390805660,1760164264623,-1897.91,0.00030315,120]
[390805661,1760164264657,-1897.91,0.00030315,120]
[390805662,1760164264689,-1897.91,0.00030315,120]
[390805663,1760164264720,-1897.97,0.00030315,120]
[390805664,1760164264749,-438.1815316,0.00030315,120]
[390805665,1760164264778,-639.31212017,0.00030315,120]
[390805666,1760164264806,-182.81,0.00030315,120]
[390805667,1760164264835,-2932.29,0.00030315,120]
[390805668,1760164264863,-2932.29,0.00030315,120]
[390805669,1760164264893,-2932.29,0.00030315,120]
[390805670,1760164264922,-2932.29,0.00030315,120]
[390805671,1760164264952,-2932.29,0.00030315,120]
[390805672,1760164264981,-2932.29,0.00030315,120]
[390805673,1760164265025,-2932.29,0.00030315,120]
[390805674,1760164265057,-2932.29,0.00030315,120]
[390805675,1760164265088,-2932.29,0.00030315,120]
[390805676,1760164265120,-2932.29,0.00030315,120]
[390805677,1760164265151,-2932.29,0.00030315,120]
[390805678,1760164265184,-2932.29,0.00030315,120]
[390805679,1760164265214,-2932.29,0.00030315,120]
[390805680,1760164265243,-2932.29,0.00030315,120]
[390805681,1760164265272,-2932.29,0.00030315,120]
[390805682,1760164265304,-2932.29,0.00030315,120]
[390805683,1760164265335,-2932.29,0.00030315,120]
[390805684,1760164265364,-2932.29,0.00030315,120]
[390805685,1760164265400,-2932.29,0.00030315,120]
[390805686,1760164265429,-2932.29,0.00030315,120]
[390805687,1760164265459,-2932.29,0.00030315,120]
[390805688,1760164265488,-2932.29,0.00030315,120]
[390805689,1760164265517,-2932.29,0.00030315,120]
[390805690,1760164265545,-2932.41435371,0.00030315,120]
[390805691,1760164265576,-500.0,0.00030315,120]
[390805692,1760164265606,-318.13,0.00030315,120]
[390805693,1760164265634,-2883.7686,0.00030315,60]
[390805694,1760164265663,-2883.7686,0.00030315,60]
[390805695,1760164265691,-2883.7686,0.00030315,60]
[390805696,1760164265719,-2883.7686,0.00030315,60]
[390805697,1760164265747,-2883.7686,0.00030315,60]
[390805698,1760164265784,-2383.31429605,0.00030315,120]
[390805699,1760164265814,-2457.01667045,0.00030315,70]
[390805700,1760164265844,-157.46946561,0.00030315,30]
[390805701,1760164265874,-500.0,0.00030315,120]
[390805702,1760164265904,-213.18,0.00030315,120]
[390805703,1760164265935,-500.0,0.00030315,120]
[390805704,1760164265965,-500.0,0.00030315,120]
[390805705,1760164265995,-500.0,0.00030315,120]
[390805706,1760164266024,-211.32,0.00030315,120]
[390805707,1760164266054,-347.53186345,0.00030315,60]
[390805708,1760164266082,-2400.74764431,0.00030315,120]
[390805709,1760164266110,-420.87634859,0.00030315,91]
[390805710,1760164266140,-443.18352633,0.00030315,120]
[390805711,1760164266168,-180.20248765,0.00030315,120]
[390805712,1760164266197,-2485.3521746,0.00030315,120]
[390805713,1760164266227,-2062.22205577,0.00030315,120]
[390805714,1760164266257,-2790.60617198,0.00030315,120]
[390805715,1760164266288,-2320.77425223,0.00030315,120]
[390805716,1760164266324,-787.42050034,0.00030315,120]
[390805717,1760164266791,-815.29432068,0.00030315,90]
[390805718,1760164266819,-425.48733401,0.00030315,120]
[390805719,1760164266846,-313.90518862,0.00030315,60]
[390805720,1760164266879,-182.2438688,0.00030315,120]
[390805721,1760164266913,-2022.62752959,0.00030315,120]
[390805722,1760164266939,-505.77337056,0.00030315,120]
[390805723,1760164266964,-286.69205748,0.00030315,60]
[390805724,1760164266991,-2238.38352315,0.00030315,120]
[390805725,1760164267018,-260.97830462,0.00030315,120]
[390805726,1760164267044,-3330.00627195,0.00030315,120]
[390805727,1760164267070,-267.27621882,0.00030315,120]
[390805728,1760164267098,-263.68243045,0.00030315,120]
[390805729,1760164267124,-1589.60677116,0.00030315,120]
[390805730,1760164267151,-468.90635222,0.00030315,120]
[390805731,1760164267178,-1734.66885992,0.00030315,120]
[390805732,1760164267205,-486.42391926,0.00030315,120]
[390805733,1760164267230,-1322.96628607,0.00030315,120]
[390805734,1760164267256,-2254.98705985,0.00030315,120]
[390805735,1760164267281,-2755.45179458,0.00030315,120]
[390805736,1760164267311,-388.51350032,0.00030315,60]
[390805737,1760164267338,-184.23171369,0.00030315,120]
[390805738,1760164267365,-896.92941809,0.00030315,120]
[390805739,1760164267392,-536.66173976,0.00030315,120]
[390805740,1760164267417,-1893.53270007,0.00030315,120]
[390805741,1760164267444,-1462.22996126,0.00030315,120]
[390805742,1760164267469,-390.55891631,0.00030315,60]
[390805743,1760164267494,-1355.8235924,0.00030315,120]
[390805744,1760164267519,-2148.13075666,0.00030315,120]
[390805745,1760164267544,-1525.38094128,0.00030315,120]
[390805746,1760164267570,-872.30823119,0.00030315,120]
[390805747,1760164267596,-1257.62114845,0.00030315,120]
[390805748,1760164267622,-1254.72462305,0.00030315,120]
[390805749,1760164267648,-534.72517597,0.00030315,120]
[390805750,1760164267673,-3080.78776512,0.00030315,120]
[390805751,1760164267700,-1369.99868799,0.00030315,120]
[390805752,1760164267727,-1163.97096851,0.00030315,120]
[390805753,1760164267753,-756.0,0.00030315,120]
[390805754,1760164267779,-2603.91972948,0.00030315,120]
[390805755,1760164267807,-506.01786657,0.00030315,120]
[390805756,1760164267834,-552.66886694,0.00030315,120]
[390805757,1760164267864,-2909.47232579,0.00030315,120]
[390805758,1760164267890,-2355.06153085,0.00030315,120]
[390805759,1760164267916,-689.47665088,0.00030315,120]
[390805760,1760164267943,-727.53490739,0.00030315,120]
[390805761,1760164267971,-1702.75849192,0.00030315,120]
[390805762,1760164267998,-1288.76356052,0.00030315,120]
[390805763,1760164268024,-1642.52454349,0.00030315,120]
[390805764,1760164268053,-237.50570581,0.00030315,120]
[390805765,1760164268083,-782.80195318,0.00030315,120]
[390805766,1760164268110,-1440.19867252,0.00030315,120]
[390805767,1760164268138,-1754.26664177,0.00030315,120]
[390805768,1760164268166,-362.81508374,0.00030315,120]
[390805769,1760164268194,-2449.31746826,0.00030315,120]
[390805770,1760164268221,-304.54843928,0.00030315,120]
[390805771,1760164268247,-500.0,0.00030315,120]
[390805772,1760164268272,-151.13960446,0.00030315,120]
[390805773,1760164268302,-183.59619329,0.00030315,120]
[390805774,1760164268331,-2000.0,0.00030315,120]
[390805775,1760164268358,-5000.0,0.00030315,35]
[390805776,1760164268389,-5000.0,0.00030315,31]
[390805777,1760164268415,-5000.0,0.00030315,36]
[390805778,1760164268441,-3210.3635027,0.00030315,120]
[390805779,1760164268466,-100000.0,0.00030315,120]
[390805780,1760164268492,-100000.0,0.00030315,120]
[390805781,1760164268517,-100000.0,0.00030315,120]
[390805782,1760164268541,-500.0,0.00030315,120]
[390805783,1760164268566,-500.0,0.00030315,120]
[390805784,1760164268591,-500.0,0.00030315,120]
[390805785,1760164268616,-500.0,0.00030315,120]
[390805786,1760164268641,-500.0,0.00030315,120]
[390805787,1760164268666,-261.69,0.00030315,120]
[390805788,1760164268691,-500.0,0.00030315,120]
[390805789,1760164268716,-500.0,0.00030315,120]
[390805790,1760164268743,-500.0,0.00030315,120]
[390805791,1760164268768,-500.0,0.00030315,120]
[390805792,1760164268794,-500.0,0.00030315,120]
[390805793,1760164268820,-366.17,0.00030315,120]
[390805794,1760164268846,-500.0,0.00030315,120]
[390805795,1760164268874,-213.18,0.00030315,120]
[390805796,1760164268905,-3003.0,0.00030315,120]
[390805797,1760164268933,-500.0,0.00030315,120]
[390805798,1760164268961,-318.13,0.00030315,120]
[390805799,1760164268988,-500.0,0.00030315,120]
[390805800,1760164269015,-5000.0,0.00030315,37]
[390805801,1760164269041,-1440.0,0.00030315,70]
[390805802,1760164269069,-500.0,0.00030315,120]
[390805803,1760164269096,-500.0,0.00030315,120]
[390805804,1760164269123,-204.97811066,0.00030315,120]
[390805805,1760164269152,-177.61063,0.00030315,120]
[390805806,1760164269178,-4576.9072203,0.00030315,80]
[390805807,1760164269204,-7945.376255,0.00030315,30]
[390805808,1760164269230,-355.03978515,0.00030315,30]
[390805809,1760164269257,-500.0,0.00030315,120]
[390805810,1760164269285,-500.0,0.00030315,120]
[390805811,1760164269314,-323.63,0.00030315,120]
[390805812,1760164269343,-500.0,0.00030315,120]
[390805813,1760164269370,-500.0,0.00030315,120]
[390805814,1760164269398,-500.0,0.00030315,120]
[390805815,1760164269425,-500.0,0.00030315,120]
[390805816,1760164269451,-254.15,0.00030315,120]
[390805817,1760164269478,-500.0,0.00030315,120]
[390805818,1760164269831,-500.0,0.00030315,120]
[390805819,1760164269860,-500.0,0.00030315,120]
[390805820,1760164269887,-500.0,0.00030315,120]
[390805821,1760164269915,-500.0,0.00030315,120]
[390805822,1760164269941,-500.0,0.00030315,120]
[390805823,1760164269968,-500.0,0.00030315,120]
[390805824,1760164269994,-500.0,0.00030315,120]
[390805825,1760164270020,-500.0,0.00030315,120]
[390805826,1760164270049,-500.0,0.00030315,120]
[390805827,1760164270074,-500.0,0.00030315,120]
[390805828,1760164270101,-500.0,0.00030315,120]
[390805829,1760164270127,-584.83,0.00030315,120]
[390805830,1760164270154,-460.0,0.00030315,70]
[390805831,1760164270180,-500.0,0.00030315,120]
[390805832,1760164270207,-500.0,0.00030315,120]
[390805833,1760164270232,-500.0,0.00030315,120]
[390805834,1760164270258,-500.0,0.00030315,120]
[390805835,1760164270284,-500.0,0.00030315,120]
[390805836,1760164270314,-500.0,0.00030315,120]
[390805837,1760164270340,-500.0,0.00030315,120]
[390805838,1760164270367,-500.0,0.00030315,120]
[390805839,1760164270396,-500.0,0.00030315,120]
[390805840,1760164270423,-500.0,0.00030315,120]
[390805841,1760164270449,-500.0,0.00030315,120]
[390805842,1760164270475,-500.0,0.00030315,120]
[390805843,1760164270501,-500.0,0.00030315,120]
[390805844,1760164270527,-500.0,0.00030315,120]
[390805845,1760164270553,-500.0,0.00030315,120]
[390805846,1760164270578,-500.0,0.00030315,120]
[390805847,1760164270604,-500.0,0.00030315,120]
[390805848,1760164270630,-500.0,0.00030315,120]
[390805849,1760164270659,-500.0,0.00030315,120]
[390805850,1760164270686,-500.0,0.00030315,120]
[390805851,1760164270713,-599.27,0.00030315,120]
[390805852,1760164270740,-500.0,0.00030315,120]
[390805853,1760164270767,-479.19,0.00030315,120]
[390805854,1760164270794,-500.0,0.00030315,120]